bitfinex/quotes_SOLUSD_20250626
["timestamp","ask_amount","ask_price","bid_price","bid_amount"]
[1750914661760,3.5643228,145.33,145.3,27.9]
[1750914662146,3.5643228,145.33,145.3,18.64964886]
[1750914662350,5.57693543,145.33,145.3,46.54964886]
[1750914663967,6.655,145.35,145.32,18.64964886]
[1750914664159,6.655,145.35,145.32,46.54964886]
[1750914664672,6.655,145.35,145.32,52.12658429]
[1750914666059,7.21153543,145.36,145.32,52.12658429]
[1750914666258,1.6346,145.36,145.32,52.12658429]
[1750914669549,7.21153543,145.36,145.32,52.12658429]
[1750914669745,1.6346,145.36,145.32,52.12658429]
[1750914669945,7.21153543,145.36,145.32,52.12658429]
[1750914670150,1.6346,145.36,145.32,52.12658429]
[1750914673474,7.21153543,145.36,145.32,52.12658429]
[1750914673679,7.21153543,145.36,145.32,46.54964886]
[1750914673862,5.57693543,145.35,145.32,18.64964886]
[1750914674474,5.57693543,145.35,145.31,27.9]
[1750914674681,12.13573543,145.34,145.3,27.92]
[1750914674893,12.13573543,145.34,145.29,24.22658429]
[1750914674894,5.57693543,145.32,145.29,18.64964886]
[1750914675089,5.57693543,145.32,145.28,56.03742673]
[1750914675391,5.57693543,145.33,145.29,5.57693543]
[1750914675995,6.5588,145.34,145.3,5.57693543]
[1750914676166,6.5588,145.34,145.3,33.49693543]
[1750914676489,6.5588,145.34,145.32,5.57693543]
[1750914676666,6.5588,145.34,145.32,33.51693543]
[1750914678383,6.5588,145.34,145.32,27.94]
[1750914681597,7.21153543,145.36,145.32,27.94]
[1750914683303,1.6346,145.36,145.32,27.94]
[1750914683471,7.21153543,145.36,145.32,27.94]
[1750914688387,5.57693543,145.36,145.32,27.94]
[1750914692312,3.56825397,145.36,145.32,27.94]
[1750914693410,3.56825397,145.36,145.32,34.82134661]
[1750914697505,3.56825397,145.35,145.32,27.94]
[1750914698311,3.56825397,145.36,145.32,27.94]
[1750914699503,3.60825397,145.37,145.33,18.64964886]
[1750914700409,3.60825397,145.37,145.33,22.21790283]
[1750914700717,3.60825397,145.37,145.33,29.09862117]
[1750914704814,8.75090822,145.37,145.33,29.09862117]
[1750914705003,3.60825397,145.37,145.33,29.09862117]
[1750914707616,0.04,145.37,145.33,29.09862117]
[1750914708622,0.04,145.37,145.36,22.21790283]
[1750914708822,0.04,145.37,145.36,50.13790283]
[1750914709704,0.04,145.37,145.36,57.01737448]
[1750914710509,0.04,145.37,145.36,57.30169762]
[1750914711211,0.04,145.37,145.36,63.22169762]
[1750914711605,0.04,145.37,145.36,77.4947135]
[1750914712134,0.04,145.37,145.36,63.22169762]
[1750914715626,0.04,145.37,145.36,77.4947135]
[1750914716924,0.04,145.37,145.36,117.78357267]
[1750914720320,0.04,145.37,145.36,206.48357267]
[1750914720521,0.04,145.37,145.36,205.79562551]
[1750914721846,0.04,145.37,145.36,145.44627448]
[1750914722012,0.04,145.37,145.36,173.34627448]
[1750914722312,0.04,145.37,145.36,173.63059762]
[1750914724312,0.04,145.37,145.36,175.63148251]
[1750914729620,0.04,145.37,145.36,170.06234365]
[1750914729829,0.04,145.37,145.36,175.63148251]
[1750914737134,0.04,145.37,145.36,173.98258251]
[1750914738018,0.04,145.37,145.36,85.28258251]
[1750914738217,0.04,145.37,145.36,85.97052967]
[1750914738440,0.04,145.37,145.36,91.53966853]
[1750914738636,0.04,145.39,145.38,44.64964886]
[1750914738842,0.04,145.39,145.38,79.09096338]
[1750914739234,0.04,145.4,145.39,18.933972]
[1750914739590,0.04,145.4,145.39,122.51054884]
[1750914739860,0.04,145.4,145.39,129.19209566]
[1750914740942,0.04,145.4,145.39,136.07014779]
[1750914741251,0.04,145.4,145.39,136.757953]
[1750914741620,0.04,145.47,145.42,18.64964886]
[1750914741936,0.04,145.47,145.43,0.28432314]
[1750914742238,0.04,145.47,145.45,5.853462]
[1750914743242,0.04,145.47,145.45,18.64964886]
[1750914743449,0.04,145.47,145.45,24.21878772]
[1750914749430,0.04,145.47,145.45,31.09400257]
[1750914750938,0.04,145.47,145.45,120.07832571]
[1750914752059,0.04,145.47,145.45,120.76584719]
[1750914754356,0.04,145.52,145.49,0.28432314]
[1750914754537,0.04,145.52,145.51,24.21878772]
[1750914755060,0.04,145.52,145.51,31.09116762]
[1750914756871,0.04,145.52,145.51,31.37549076]
[1750914764766,0.04,145.52,145.51,120.07549076]
[1750914766755,0.04,145.52,145.51,113.20311086]
[1750914767061,0.04,145.52,145.51,107.633972]
[1750914767267,0.04,145.52,145.51,113.20311086]
[1750914767873,0.04,145.52,145.51,120.07549076]
[1750914770447,0.04,145.52,145.51,31.37549076]
[1750914775178,0.04,145.52,145.51,136.7451519]
[1750914775364,0.04,145.58,145.57,24.50311086]
[1750914775671,0.04,145.58,145.57,52.46311086]
[1750914777155,0.04,145.58,145.57,59.33265815]
[1750914777964,0.04,145.58,145.57,53.76351929]
[1750914778169,0.04,145.58,145.57,52.17878772]
[1750914779360,0.04,145.58,145.57,59.33265815]
[1750914780579,0.04,145.58,145.57,174.03265815]
[1750914780981,1.6269,145.65,145.61,18.64964886]
[1750914781283,6.082,145.67,145.64,5.56913886]
[1750914781470,6.082,145.67,145.64,27.96]
[1750914781670,6.082,145.67,145.64,34.82609648]
[1750914781876,6.082,145.67,145.64,40.39523534]
[1750914782192,6.082,145.67,145.65,5.56913886]
[1750914782359,6.082,145.67,145.64,34.82609648]
[1750914782360,6.082,145.67,145.66,33.52913886]
[1750914783180,1.5145,145.69,145.67,18.64964886]
[1750914783379,1.5145,145.69,145.67,31.08343798]
[1750914783560,6.5442,145.71,145.67,31.08343798]
[1750914783764,1.6438,145.73,145.68,0.28432314]
[1750914783982,5.56913886,145.71,145.68,27.96]
[1750914784282,5.56913886,145.71,145.67,27.96]
[1750914784481,5.56913886,145.7,145.66,27.98]
[1750914784666,6.0191,145.69,145.66,18.64964886]
[1750914784983,11.58823886,145.69,145.65,18.64964886]
[1750914788697,6.0191,145.69,145.65,18.64964886]
[1750914788858,11.58823886,145.69,145.65,18.64964886]
[1750914789983,5.56913886,145.68,145.65,18.64964886]
[1750914790374,11.58823886,145.69,145.65,18.64964886]
[1750914791488,6.0191,145.69,145.65,31.08455339]
[1750914792184,6.0191,145.69,145.66,5.56913886]
[1750914792386,6.0191,145.69,145.67,5.56913886]
[1750914793894,6.0191,145.69,145.66,27.96]
[1750914794181,6.0191,145.69,145.67,18.64964886]
[1750914798898,5.56913886,145.7,145.67,18.64964886]
[1750914799475,5.56913886,145.71,145.67,18.64964886]
[1750914800296,5.56913886,145.7,145.67,18.64964886]
[1750914802295,5.56913886,145.68,145.61,88.7]
[1750914802478,5.56913886,145.66,145.62,58.13878772]
[1750914803581,26.0,145.68,145.62,58.13878772]
[1750914804077,26.0,145.68,145.62,52.56964886]
[1750914804277,5.56913886,145.66,145.62,52.56964886]
[1750914804478,5.56913886,145.67,145.62,65.00581578]
[1750914804700,5.56913886,145.67,145.63,5.56913886]
[1750914804879,5.56913886,145.67,145.63,33.52913886]
[1750914805599,5.56913886,145.67,145.63,27.96]
[1750914806400,26.0,145.68,145.63,27.96]
[1750914806602,5.56913886,145.67,145.63,27.96]
[1750914806975,5.56913886,145.67,145.62,37.06581578]
[1750914807196,5.56913886,145.67,145.63,27.96]
[1750914808984,5.56913886,145.66,145.63,27.96]
[1750914809303,5.56913886,145.67,145.63,27.96]
[1750914810906,5.56913886,145.65,145.62,24.62964886]
[1750914811205,5.56913886,145.65,145.62,52.56964886]
[1750914811507,5.56913886,145.63,145.59,18.64964886]
[1750914811679,6.2228,145.66,145.59,46.58964886]
[1750914811680,5.56913886,145.62,145.59,46.58964886]
[1750914811880,5.56913886,145.61,145.58,18.64964886]
[1750914812105,5.56913886,145.61,145.57,11.54913886]
[1750914812303,5.56913886,145.61,145.57,33.94]
[1750914814504,5.56913886,145.59,145.55,55.56622403]
[1750914815987,5.56913886,145.59,145.55,55.58622403]
[1750914817112,5.56913886,145.58,145.55,27.98]
[1750914817417,5.56913886,145.58,145.54,46.62964886]
[1750914818015,5.56913886,145.58,145.54,52.19878772]
[1750914819317,5.56913886,145.58,145.54,24.21878772]
[1750914819512,5.56913886,145.58,145.54,52.19878772]
[1750914821692,5.56913886,145.58,145.54,46.62964886]
[1750914822103,5.56913886,145.58,145.54,59.06963911]
[1750914822415,6.4479,145.6,145.55,5.56913886]
[1750914822416,12.01703886,145.6,145.55,5.56913886]
[1750914822611,12.01703886,145.6,145.54,53.50050025]
[1750914822795,12.01703886,145.6,145.55,5.56913886]
[1750914824716,5.56913886,145.59,145.54,59.06963911]
[1750914825525,5.56913886,145.58,145.54,59.06963911]
[1750914826632,6.4479,145.6,145.54,59.06963911]
[1750914826924,5.56913886,145.58,145.54,59.06963911]
[1750914828724,5.56913886,145.59,145.54,59.06963911]
[1750914828927,5.56913886,145.59,145.55,5.56913886]
[1750914830831,5.56913886,145.58,145.54,59.06963911]
[1750914831532,5.56913886,145.58,145.54,46.62964886]
[1750914832022,5.56913886,145.58,145.54,27.98]
[1750914833307,5.56913886,145.58,145.54,33.54913886]
[1750914834034,6.4479,145.6,145.56,5.56913886]
[1750914834237,6.4479,145.6,145.58,24.21878772]
[1750914834537,5.56913886,145.63,145.58,5.56913886]
[1750914834726,5.56913886,145.63,145.59,5.56913886]
[1750914835127,6.4084,145.64,145.6,5.56913886]
[1750914835433,6.4084,145.64,145.61,18.64964886]
[1750914835639,11.97753886,145.64,145.59,33.52913886]
[1750914836738,11.97753886,145.64,145.57,46.60964886]
[1750914836739,5.56913886,145.62,145.57,46.60964886]
[1750914836936,5.56913886,145.62,145.57,52.17878772]
[1750914837320,5.56913886,145.62,145.57,59.0483291]
[1750914838732,5.56913886,145.62,145.57,52.17878772]
[1750914839043,5.56913886,145.6,145.57,27.96]
[1750914839214,26.0,145.63,145.55,34.85044235]
[1750914839532,5.56913886,145.6,145.55,40.41958121]
[1750914845531,5.56913886,145.59,145.55,34.85044235]
[1750914845728,5.56913886,145.59,145.55,40.41958121]
[1750914845931,5.56913886,145.6,145.55,40.41958121]
[1750914847749,5.56913886,145.59,145.55,27.98]
[1750914848243,5.56913886,145.6,145.55,40.41961973]
[1750914848841,5.56913886,145.6,145.55,33.54913886]
[1750914849040,5.56913886,145.59,145.55,33.54913886]
[1750914849653,5.56913886,145.59,145.54,12.439977]
[1750914849833,5.56913886,145.57,145.54,18.64964886]
[1750914850149,5.56913886,145.57,145.53,5.98]
[1750914850349,5.56913886,145.57,145.53,33.94]
[1750914851132,5.56913886,145.57,145.53,39.50913886]
[1750914851452,5.56913886,145.57,145.53,33.94]
[1750914852451,5.56913886,145.57,145.53,5.98]
[1750914852958,5.56913886,145.57,145.53,18.42050787]
[1750914854455,5.56913886,145.57,145.53,46.38050787]
[1750914854859,5.56913886,145.58,145.53,46.38050787]
[1750914855358,5.56913886,145.58,145.53,18.42050787]
[1750914855657,5.56913886,145.58,145.53,46.38050787]
[1750914860544,10.7036935,145.58,145.53,46.38050787]
[1750914861863,5.56913886,145.57,145.53,33.94]
[1750914862745,5.56913886,145.56,145.53,5.98]
[1750914862941,5.56913886,145.55,145.53,5.98]
[1750914863141,5.56913886,145.55,145.52,0.02]
[1750914866147,5.56913886,145.54,145.52,0.02]
[1750914871887,5.56913886,145.55,145.52,0.02]
[1750914872272,5.56913886,145.54,145.52,0.02]
[1750914880163,5.56913886,145.53,145.52,0.02]
[1750914880368,5.56913886,145.54,145.52,0.02]
[1750914881679,5.13212243,145.56,145.52,0.02]
[1750914881879,5.56913886,145.53,145.52,0.02]
[1750914882263,3.55966671,145.53,145.52,0.02]
[1750914882769,29.55966671,145.53,145.52,0.02]
[1750914886370,31.56287717,145.53,145.52,0.02]
[1750914891064,26.0,145.55,145.52,0.02]
[1750914891283,5.56287717,145.54,145.52,0.02]
[1750914892462,5.56287717,145.53,145.52,0.02]
[1750914895091,10.69288557,145.53,145.52,0.02]
[1750914896080,17.56432101,145.53,145.52,0.02]
[1750914896278,26.0,145.5,145.49,0.02]
[1750914896491,31.56287717,145.5,145.49,0.02]
[1750914897779,36.69288557,145.5,145.49,0.02]
[1750914898784,43.5657378,145.5,145.49,0.02]
[1750914901295,36.69288557,145.5,145.49,0.02]
[1750914902170,31.56287717,145.5,145.49,0.02]
[1750914903994,38.4357294,145.5,145.49,0.02]
[1750914904201,43.56062556,145.5,145.49,0.02]
[1750914904577,43.8449487,145.5,145.49,0.02]
[1750914904792,50.1869487,145.5,145.49,0.02]
[1750914904994,50.1869487,145.5,145.43,0.02]
[1750914904995,0.28432314,145.44,145.43,0.02]
[1750914905193,26.0,145.4,145.37,0.02]
[1750914905399,5.56287717,145.38,145.37,0.02]
[1750914906887,5.84720031,145.38,145.37,0.02]
[1750914907081,12.72572555,145.38,145.37,0.02]
[1750914908404,5.84720031,145.38,145.37,0.02]
[1750914909491,12.72572555,145.38,145.37,0.02]
[1750914911107,18.28860272,145.38,145.37,0.02]
[1750914911289,18.28860272,145.38,145.28,0.02]
[1750914911290,26.0,145.35,145.28,0.02]
[1750914911489,5.56287717,145.32,145.28,0.02]
[1750914911705,5.56287717,145.31,145.28,0.02]
[1750914912693,5.56287717,145.29,145.28,0.02]
[1750914916851,6.3017,145.32,145.28,0.02]
[1750914917017,5.56287717,145.3,145.28,0.02]
[1750914918215,6.3017,145.36,145.28,0.02]
[1750914918420,5.56287717,145.33,145.28,5.58287717]
[1750914918619,146.5,145.38,145.3,5.56287717]
[1750914918821,5.56287717,145.36,145.31,5.56287717]
[1750914919007,152.06287717,145.38,145.33,5.56287717]
[1750914919208,5.56287717,145.37,145.32,5.56287717]
[1750914919523,26.0,145.38,145.32,5.56287717]
[1750914919703,11.54287717,145.39,145.34,5.56287717]
[1750914920021,5.98,145.39,145.35,5.56287717]
[1750914920396,5.98,145.39,145.31,18.64964886]
[1750914920397,11.54287717,145.39,145.34,5.56287717]
[1750914920596,11.54287717,145.39,145.35,5.56287717]
[1750914920799,5.56287717,145.39,145.35,5.56287717]
[1750914921001,5.56287717,145.38,145.34,5.56287717]
[1750914921800,13.05017717,145.44,145.34,5.56287717]
[1750914921801,16.41,145.48,145.36,5.56287717]
[1750914922121,5.56287717,145.4,145.35,24.21252603]
[1750914922813,5.56287717,145.39,145.35,18.64964886]
[1750914923023,5.56287717,145.38,145.34,6.4343]
[1750914923315,5.56287717,145.38,145.33,34.96084604]
[1750914923316,5.56287717,145.36,145.33,28.08]
[1750914923539,5.56287717,145.37,145.33,28.08]
[1750914924022,5.56287717,145.36,145.33,28.08]
[1750914925105,5.56287717,145.35,145.33,28.08]
[1750914925309,5.56287717,145.35,145.3,31.79292603]
[1750914926038,5.56287717,145.31,145.3,1.542]
[1750914927305,5.56287717,145.31,145.28,0.02]
[1750914928022,5.56287717,145.3,145.28,0.02]
[1750914929041,5.56287717,145.32,145.28,5.58287717]
[1750914929230,5.56287717,145.34,145.29,5.56287717]
[1750914929443,5.56287717,145.34,145.3,5.56287717]
[1750914929950,5.56287717,145.34,145.28,0.02]
[1750914930156,5.56287717,145.34,145.3,5.56287717]
[1750914930344,5.56287717,145.34,145.29,5.56287717]
[1750914930634,31.98,145.36,145.3,18.64964886]
[1750914930842,31.56287717,145.36,145.31,5.56287717]
[1750914931629,5.56287717,145.33,145.28,5.58287717]
[1750914931936,26.0,145.36,145.28,5.58287717]
[1750914931937,5.56287717,145.32,145.28,0.02]
[1750914934335,5.56287717,145.32,145.28,5.58287717]
[1750914934637,5.56287717,145.33,145.28,5.58287717]
[1750914934811,31.56287717,145.34,145.29,5.56287717]
[1750914935827,5.56287717,145.33,145.28,0.02]
[1750914936056,5.56287717,145.32,145.28,0.02]
[1750914937048,5.56287717,145.31,145.28,0.02]
[1750914937231,5.56287717,145.32,145.28,0.02]
[1750914940030,5.56287717,145.31,145.28,0.02]
[1750914940223,5.56287717,145.3,145.28,0.02]
[1750914942627,6.88140448,145.32,145.28,0.02]
[1750914942628,5.56287717,145.29,145.28,0.02]
[1750914944557,12.44566332,145.29,145.28,0.02]
[1750914944757,26.0,145.3,145.28,0.02]
[1750914945051,5.56287717,145.32,145.28,0.02]
[1750914945228,19.59285719,145.35,145.29,5.56287717]
[1750914945229,5.56287717,145.34,145.29,5.56287717]
[1750914945431,31.56287717,145.34,145.29,5.56287717]
[1750914947661,26.0,145.34,145.3,5.56287717]
[1750914947833,26.0,145.34,145.31,5.56287717]
[1750914948250,26.0,145.34,145.32,5.56287717]
[1750914948447,26.0,145.34,145.31,5.56287717]
[1750914949361,26.0,145.34,145.3,7.19287717]
[1750914949533,31.56287717,145.34,145.3,1.63]
[1750914950960,5.56287717,145.33,145.3,1.63]
[1750914951967,5.56287717,145.32,145.3,1.63]
[1750914952336,26.0,145.34,145.3,1.63]
[1750914952535,5.56287717,145.33,145.29,28.16]
[1750914953459,5.56287717,145.31,145.28,0.02]
[1750914953839,5.56287717,145.32,145.28,0.02]
[1750914956533,5.56287717,145.33,145.28,5.58287717]
[1750914957365,5.56287717,145.32,145.28,0.02]
[1750914957674,5.56287717,145.31,145.28,0.02]
[1750914957850,5.56287717,145.3,145.28,0.02]
[1750914958558,5.56287717,145.29,145.28,0.02]
[1750914961562,31.56287717,145.3,145.28,0.02]
[1750914961759,26.0,145.29,145.28,0.02]
[1750914962068,5.56287717,145.31,145.28,0.02]
[1750914962264,26.0,145.32,145.28,0.02]
[1750914962265,5.56287717,145.29,145.28,0.02]
[1750914962644,31.56287717,145.29,145.28,0.02]
[1750914963962,38.44566332,145.29,145.28,0.02]
[1750914964956,32.88278615,145.29,145.28,0.02]
[1750914965173,38.44566332,145.29,145.28,0.02]
[1750914967769,26.0,145.29,145.28,0.02]
[1750914968076,12.72998646,145.29,145.28,0.02]
[1750914968650,17.84638389,145.29,145.28,0.02]
[1750914968849,38.72998646,145.29,145.28,0.02]
[1750914969066,12.72998646,145.29,145.28,0.02]
[1750914969268,17.84638389,145.29,145.28,0.02]
[1750914970083,12.72998646,145.29,145.28,0.02]
[1750914970779,5.56287717,145.29,145.28,0.02]
[1750914971079,31.56287717,145.3,145.28,0.02]
[1750914971373,5.26064238,145.32,145.28,0.02]
[1750914971374,26.0,145.29,145.28,0.02]
[1750914971682,10.68135798,145.32,145.28,0.02]
[1750914971858,5.56287717,145.31,145.28,0.02]
[1750914972058,5.56287717,145.29,145.28,0.02]
[1750914972279,5.56287717,145.3,145.28,0.02]
[1750914972779,26.0,145.3,145.28,0.02]
[1750914973287,31.56287717,145.3,145.28,0.02]
[1750914978178,26.0,145.3,145.28,0.02]
[1750914978491,178.06287717,145.33,145.29,5.56287717]
[1750914978691,178.06287717,145.33,145.28,5.58287717]
[1750914978692,5.56287717,145.32,145.28,5.58287717]
[1750914979385,5.56287717,145.32,145.28,0.02]
[1750914979562,5.56287717,145.29,145.28,0.02]
[1750914983587,12.44566332,145.29,145.28,0.02]
[1750914983904,188.56401135,145.29,145.28,0.02]
[1750914987571,5.12149886,145.29,145.28,0.02]
[1750914987781,5.56287717,145.29,145.28,0.02]
[1750914988084,5.84720031,145.29,145.28,0.02]
[1750914988691,5.56287717,145.29,145.28,0.02]
[1750914990200,12.44566332,145.29,145.28,0.02]
[1750914991497,6.88278615,145.29,145.28,0.02]
[1750914991698,12.44566332,145.29,145.28,0.02]
[1750914993893,12.72998646,145.29,145.28,0.02]
[1750914994097,43.84682473,145.29,145.28,0.02]
[1750914994282,23.4097019,145.29,145.28,0.02]
[1750914994797,49.4097019,145.29,145.28,0.02]
[1750914994999,23.4097019,145.29,145.28,0.02]
[1750914995499,188.55935076,145.29,145.28,0.02]
[1750914997290,18.933972,145.28,145.26,0.02]
[1750914997490,26.0,145.24,145.23,0.02]
[1750914997689,31.56287717,145.24,145.23,0.02]
[1750915006199,26.0,145.24,145.23,0.02]
[1750915006582,5.56287717,145.26,145.23,0.02]
[1750915007205,26.0,145.24,145.23,0.02]
[1750915008916,5.12351685,145.28,145.23,5.58287717]
[1750915009105,5.56287717,145.26,145.23,0.02]
[1750915010210,5.56287717,145.25,145.23,0.02]
[1750915010383,5.56287717,145.26,145.23,0.02]
[1750915010992,26.0,145.27,145.23,5.58287717]
[1750915011194,31.56287717,145.27,145.23,0.02]
[1750915011396,5.56287717,145.26,145.23,0.02]
[1750915014110,31.56287717,145.27,145.23,0.02]
[1750915019104,5.56287717,145.26,145.23,0.02]
[1750915020589,5.56287717,145.24,145.23,0.02]
[1750915021607,5.84720031,145.24,145.23,0.02]
[1750915021999,10.97011968,145.24,145.23,0.02]
[1750915022314,10.68579654,145.24,145.23,0.02]
[1750915022503,5.56287717,145.24,145.23,0.02]
[1750915022704,10.68608312,145.24,145.23,0.02]
[1750915022892,10.97040626,145.24,145.23,0.02]
[1750915023512,5.84720031,145.24,145.23,0.02]
[1750915024322,17.85556186,145.24,145.23,0.02]
[1750915024500,12.73235591,145.24,145.23,0.02]
[1750915024999,17.85556186,145.24,145.23,0.02]
[1750915025209,12.73235591,145.24,145.23,0.02]
[1750915025602,17.85556186,145.24,145.23,0.02]
[1750915025803,12.73235591,145.24,145.23,0.02]
[1750915026503,37.48200477,145.24,145.23,0.02]
[1750915026815,42.60521072,145.24,145.23,0.02]
[1750915028428,189.10521072,145.24,145.23,0.02]
[1750915030924,18.933972,145.23,145.22,0.02]
[1750915031221,29.62005512,145.23,145.22,0.02]
[1750915032432,36.50568481,145.23,145.22,0.02]
[1750915039037,5.40752909,145.23,145.22,0.02]
[1750915039224,10.97040626,145.23,145.22,0.02]
[1750915039533,5.56287717,145.23,145.22,0.02]
[1750915039730,5.84720031,145.23,145.22,0.02]
[1750915039908,5.56287717,145.23,145.22,0.02]
[1750915040107,5.56287717,145.3,145.23,1.5316]
[1750915040311,5.56287717,145.29,145.24,5.56287717]
[1750915040541,26.0,145.26,145.24,5.56287717]
[1750915040707,5.56287717,145.28,145.23,7.09447717]
[1750915040909,31.56287717,145.28,145.23,7.09447717]
[1750915041212,26.0,145.25,145.23,1.5316]
[1750915041421,5.56287717,145.25,145.23,1.5316]
[1750915041625,26.0,145.24,145.23,1.5316]
[1750915042412,5.56287717,145.26,145.23,1.5316]
[1750915043129,6.08,145.29,145.23,1.5316]
[1750915043450,26.0,145.26,145.24,5.56287717]
[1750915044039,26.0,145.26,145.23,1.5316]
[1750915044040,26.0,145.26,145.23,7.09447717]
[1750915047726,26.0,145.26,145.23,1.5316]
[1750915059952,5.56287717,145.26,145.23,1.5316]
[1750915060342,5.56287717,145.24,145.22,0.02]
[1750915062529,31.56287717,145.28,145.22,0.02]
[1750915062530,5.56287717,145.23,145.22,0.02]
[1750915063843,5.56287717,145.24,145.22,0.02]
[1750915067551,31.56287717,145.25,145.22,0.02]
[1750915067851,26.0,145.24,145.22,0.02]
[1750915083448,26.0,145.24,145.22,5.58287717]
[1750915083765,26.0,145.24,145.22,0.02]
[1750915085647,5.14201743,145.27,145.22,5.58287717]
[1750915085854,5.14201743,145.26,145.23,5.56287717]
[1750915087068,5.14201743,145.26,145.22,5.58287717]
[1750915087763,10.7048946,145.26,145.22,5.58287717]
[1750915089568,5.56287717,145.25,145.22,0.02]
[1750915091870,5.56287717,145.26,145.22,0.02]
[1750915094075,10.70381258,145.26,145.22,0.02]
[1750915096874,5.56287717,145.26,145.22,0.02]
[1750915097177,10.70406342,145.26,145.22,0.02]
[1750915097362,5.56287717,145.25,145.22,0.02]
[1750915097561,10.70382668,145.25,145.22,0.02]
[1750915097769,5.56287717,145.25,145.22,0.02]
[1750915097955,5.56287717,145.24,145.22,0.02]
[1750915098986,5.56287717,145.25,145.22,0.02]
[1750915099258,5.14088722,145.24,145.22,0.02]
[1750915099470,5.56287717,145.25,145.22,0.02]
[1750915099677,10.70368512,145.24,145.22,0.02]
[1750915099867,5.56287717,145.25,145.22,0.02]
[1750915100192,5.14080399,145.24,145.22,0.02]
[1750915100357,5.56287717,145.25,145.22,0.02]
[1750915100558,5.14055527,145.24,145.22,0.02]
[1750915100758,5.56287717,145.25,145.22,0.02]
[1750915100959,5.14074968,145.24,145.22,0.02]
[1750915101757,5.56287717,145.25,145.22,0.02]
[1750915102157,5.56287717,145.26,145.22,0.02]
[1750915102359,5.13835853,145.25,145.22,0.02]
[1750915102566,5.56287717,145.26,145.22,0.02]
[1750915102782,5.13780023,145.25,145.22,0.02]
[1750915102984,5.56287717,145.26,145.22,0.02]
[1750915103197,5.13747334,145.25,145.22,0.02]
[1750915103359,5.56287717,145.25,145.22,0.02]
[1750915103882,5.56287717,145.26,145.22,0.02]
[1750915104178,5.13787374,145.25,145.22,0.02]
[1750915104393,5.56287717,145.26,145.22,0.02]
[1750915104689,5.13804495,145.25,145.22,0.02]
[1750915104864,5.56287717,145.26,145.22,0.02]
[1750915105060,151.92236689,145.25,145.22,0.02]
[1750915105364,38.16140299,145.23,145.22,0.02]
[1750915105561,36.98526987,145.23,145.18,0.02]
[1750915105763,5.56287717,145.2,145.18,0.02]
[1750915105977,5.13806956,145.19,145.18,0.02]
[1750915106373,10.70094673,145.19,145.18,0.02]
[1750915106572,5.56287717,145.19,145.18,0.02]
[1750915109873,6.88629195,145.22,145.18,0.02]
[1750915109874,10.70094673,145.22,145.18,0.02]
[1750915110079,5.56287717,145.22,145.18,0.02]
[1750915111871,5.13806956,145.23,145.2,5.56287717]
[1750915112071,5.56287717,145.25,145.2,5.56287717]
[1750915113775,36.68388602,145.26,145.21,5.56287717]
[1750915113976,31.56287717,145.26,145.21,5.56287717]
[1750915114385,36.68322926,145.27,145.22,5.56287717]
[1750915114568,31.56287717,145.27,145.22,5.56287717]
[1750915116072,36.68319225,145.27,145.22,5.56287717]
[1750915116283,31.56287717,145.27,145.22,5.56287717]
[1750915116877,36.68303077,145.27,145.22,5.56287717]
[1750915117175,0.04,145.3,145.25,5.56287717]
[1750915117371,0.04,145.3,145.26,5.56287717]
[1750915117587,0.04,145.3,145.28,5.56287717]
[1750915118280,0.04,145.3,145.27,5.56287717]
[1750915118488,5.60287717,145.3,145.25,11.97367717]
[1750915120189,0.04,145.3,145.25,11.97367717]
[1750915120372,0.04,145.3,145.26,5.56287717]
[1750915120575,0.04,145.3,145.28,5.56287717]
[1750915120773,0.04,145.3,145.29,5.56287717]
[1750915123088,0.04,145.3,145.28,5.56287717]
[1750915123291,0.04,145.3,145.27,24.21252603]
[1750915123495,0.04,145.3,145.26,24.21252603]
[1750915124203,5.60287717,145.3,145.26,24.21252603]